[Event "Paul Kerese Mälestusfestival 2022 Kiirturniir"]
[Site "Pärnu, Estonia Resort Hotel & Spa"]
[Date "????.??.??"]
[Round "1.3"]
[White "Maiorov, Nikita"]
[Black "Azarkevics, Aleksejs"]
[Result "1-0"]
[TimeControl "15 minutit partiile + 3 sek käigule"]
[WhiteTitle "GM"]
[WhiteElo "2431"]
[BlackElo "1484"]

1. d4 {[%clk 00:15:02]} {[%emt 00:00:03]} g6 {[%clk 00:15:01]} {[%emt
00:00:06]} 2. e4 {[%clk 00:15:02]} {[%emt 00:00:03]} Bg7 {[%clk 00:15:02]}
{[%emt 00:00:03]} 3. Nc3 {[%clk 00:15:04]} {[%emt 00:00:01]} e6 {[%clk
00:15:00]} {[%emt 00:00:05]} 4. f4 {[%clk 00:15:05]} {[%emt 00:00:01]} Nc6
{[%clk 00:14:25]} {[%emt 00:00:39]} 5. Nf3 {[%clk 00:15:04]} {[%emt 00:00:03]}
d5 {[%clk 00:14:19]} {[%emt 00:00:09]} 6. e5 {[%clk 00:15:05]} {[%emt
00:00:02]} a6 {[%clk 00:14:10]} {[%emt 00:00:13]} 7. Be2 {[%clk 00:15:05]}
{[%emt 00:00:03]} Bd7 {[%clk 00:14:03]} {[%emt 00:00:11]} 8. O-O {[%clk
00:15:02]} {[%emt 00:00:05]} h5 {[%clk 00:13:55]} {[%emt 00:00:11]} 9. Be3
{[%clk 00:15:02]} {[%emt 00:00:02]} Nh6 {[%clk 00:13:50]} {[%emt 00:00:08]} 10.
Kh1 {[%clk 00:14:59]} {[%emt 00:00:06]} Ng4 {[%clk 00:13:51]} {[%emt 00:00:03]}
11. Bg1 {[%clk 00:15:00]} {[%emt 00:00:01]} Qe7 {[%clk 00:13:27]} {[%emt
00:00:27]} 12. Qe1 {[%clk 00:14:59]} {[%emt 00:00:04]} Qb4 {[%clk 00:13:18]}
{[%emt 00:00:13]} 13. Rb1 {[%clk 00:14:59]} {[%emt 00:00:03]} O-O-O {[%clk
00:13:11]} {[%emt 00:00:09]} 14. Bd3 {[%clk 00:14:59]} {[%emt 00:00:03]} f6
{[%clk 00:13:02]} {[%emt 00:00:13]} 15. h3 {[%clk 00:14:34]} {[%emt 00:00:27]}
Nh6 {[%clk 00:12:58]} {[%emt 00:00:07]} 16. Bxg6 {[%clk 00:14:29]} {[%emt
00:00:08]} fxe5 {[%clk 00:12:57]} {[%emt 00:00:05]} 17. fxe5 {[%clk 00:14:25]}
{[%emt 00:00:07]} Nf5 {[%clk 00:12:46]} {[%emt 00:00:14]} 18. Bxf5 {[%clk
00:14:26]} {[%emt 00:00:02]} exf5 {[%clk 00:12:41]} {[%emt 00:00:08]} 19. Nxd5
{[%clk 00:14:20]} {[%emt 00:00:08]} Qc4 {[%clk 00:12:27]} {[%emt 00:00:17]} 20.
Nf4 {[%clk 00:14:09]} {[%emt 00:00:13]} Bh6 {[%clk 00:10:56]} {[%emt 00:01:35]}
21. Ne2 {[%clk 00:12:48]} {[%emt 00:01:24]} Qxc2 {[%clk 00:10:36]} {[%emt
00:00:24]} 22. d5 {[%clk 00:12:48]} {[%emt 00:00:03]} Nb4 {[%clk 00:10:18]}
{[%emt 00:00:21]} 23. Ned4 {[%clk 00:12:30]} {[%emt 00:00:20]} Qa4 {[%clk
00:08:58]} {[%emt 00:01:22]} 24. b3 {[%clk 00:12:28]} {[%emt 00:00:06]} Qa3
{[%clk 00:07:53]} {[%emt 00:01:08]} 25. e6 {[%clk 00:12:28]} {[%emt 00:00:02]}
Bb5 {[%clk 00:06:27]} {[%emt 00:01:29]} 26. Nxb5 {[%clk 00:12:27]} {[%emt
00:00:04]} axb5 {[%clk 00:06:29]} {[%emt 00:00:02]} 27. Bc5 {[%clk 00:12:26]}
{[%emt 00:00:04]} b6 {[%clk 00:04:12]} {[%emt 00:02:21]} 28. Bxb4 {[%clk
00:12:26]} {[%emt 00:00:02]} Qa8 {[%clk 00:03:41]} {[%emt 00:00:34]} 29. e7
{[%clk 00:12:26]} {[%emt 00:00:03]} Rde8 {[%clk 00:03:24]} {[%emt 00:00:20]} 30.
Qe6+ {[%clk 00:12:28]} {[%emt 00:00:01]} Kb8 {[%clk 00:03:13]} {[%emt
00:00:14]} 31. Ne5 {[%clk 00:12:29]} {[%emt 00:00:02]} Ka7 {[%clk 00:01:18]}
{[%emt 00:01:59]} 32. a4 {[%clk 00:12:24]} {[%emt 00:00:08]} bxa4 {[%clk
00:01:14]} {[%emt 00:00:07]} 33. Ra1 {[%clk 00:12:24]} {[%emt 00:00:02]} 1-0

[Event "Paul Kerese Mälestusfestival 2022 Kiirturniir"]
[Site "Pärnu, Estonia Resort Hotel & Spa"]
[Date "????.??.??"]
[Round "1.4"]
[White "Valdats, Maris"]
[Black "Kantans, Toms"]
[Result "0-1"]
[TimeControl "15 minutit partiile + 3 sek käigule"]
[BlackTitle "GM"]
[WhiteElo "1475"]
[BlackElo "2422"]

1. e4 {[%clk 00:15:03]} {[%emt 00:00:02]} c5 {[%clk 00:15:05]} {[%emt
00:00:02]} 2. Nf3 {[%clk 00:15:04]} {[%emt 00:00:02]} Nf6 {[%clk 00:15:06]}
{[%emt 00:00:02]} 3. e5 {[%clk 00:14:58]} {[%emt 00:00:10]} Nd5 {[%clk
00:15:08]} {[%emt 00:00:01]} 4. d4 {[%clk 00:14:59]} {[%emt 00:00:02]} cxd4
{[%clk 00:15:08]} {[%emt 00:00:02]} 5. Nxd4 {[%clk 00:14:59]} {[%emt 00:00:04]}
Nc6 {[%clk 00:15:06]} {[%emt 00:00:06]} 6. Nf3 {[%clk 00:14:32]} {[%emt
00:00:30]} Nc7 {[%clk 00:15:00]} {[%emt 00:00:08]} 7. c4 {[%clk 00:14:15]}
{[%emt 00:00:20]} g6 {[%clk 00:15:01]} {[%emt 00:00:02]} 8. Bd3 {[%clk
00:13:17]} {[%emt 00:01:01]} Bg7 {[%clk 00:14:59]} {[%emt 00:00:05]} 9. Qe2
{[%clk 00:13:16]} {[%emt 00:00:04]} Ne6 {[%clk 00:14:51]} {[%emt 00:00:10]} 10.
O-O {[%clk 00:13:03]} {[%emt 00:00:17]} O-O {[%clk 00:14:51]} {[%emt 00:00:03]}
11. Nc3 {[%clk 00:12:39]} {[%emt 00:00:27]} b6 {[%clk 00:14:52]} {[%emt
00:00:02]} 12. Be3 {[%clk 00:11:00]} {[%emt 00:01:42]} Bb7 {[%clk 00:14:18]}
{[%emt 00:00:37]} 13. Rad1 {[%clk 00:10:49]} {[%emt 00:00:13]} Nxe5 {[%clk
00:14:09]} {[%emt 00:00:12]} 14. Nxe5 {[%clk 00:10:49]} {[%emt 00:00:03]} Bxe5
{[%clk 00:14:10]} {[%emt 00:00:02]} 15. Bh6 {[%clk 00:10:50]} {[%emt 00:00:02]}
Bg7 {[%clk 00:14:04]} {[%emt 00:00:09]} 16. Bxg7 {[%clk 00:10:50]} {[%emt
00:00:03]} Kxg7 {[%clk 00:14:04]} {[%emt 00:00:03]} 17. Be4 {[%clk 00:10:23]}
{[%emt 00:00:29]} Bxe4 {[%clk 00:13:57]} {[%emt 00:00:10]} 18. Qxe4 {[%clk
00:10:11]} {[%emt 00:00:15]} Rc8 {[%clk 00:13:57]} {[%emt 00:00:03]} 19. b3
{[%clk 00:09:39]} {[%emt 00:00:35]} d6 {[%clk 00:13:45]} {[%emt 00:00:15]} 20.
Rfe1 {[%clk 00:09:14]} {[%emt 00:00:29]} Qd7 {[%clk 00:13:45]} {[%emt
00:00:03]} 21. h4 {[%clk 00:09:07]} {[%emt 00:00:10]} h5 {[%clk 00:13:33]}
{[%emt 00:00:15]} 22. Re3 {[%clk 00:08:09]} {[%emt 00:01:01]} Rfe8 {[%clk
00:13:12]} {[%emt 00:00:24]} 23. Rg3 {[%clk 00:08:03]} {[%emt 00:00:09]} Rc5
{[%clk 00:12:18]} {[%emt 00:00:57]} 24. Nd5 {[%clk 00:07:57]} {[%emt 00:00:09]}
Kh7 {[%clk 00:11:06]} {[%emt 00:01:15]} 25. f4 {[%clk 00:07:08]} {[%emt
00:00:52]} Nc7 {[%clk 00:10:07]} {[%emt 00:01:02]} 26. Ne3 {[%clk 00:05:19]}
{[%emt 00:01:52]} f5 {[%clk 00:09:51]} {[%emt 00:00:19]} 27. Qd3 {[%clk
00:04:30]} {[%emt 00:00:51]} a5 {[%clk 00:09:21]} {[%emt 00:00:34]} 28. a3
{[%clk 00:03:46]} {[%emt 00:00:47]} e5 {[%clk 00:05:34]} {[%emt 00:03:50]} 29.
fxe5 {[%clk 00:03:00]} {[%emt 00:00:49]} Rcxe5 {[%clk 00:05:33]} {[%emt
00:00:03]} 30. Nc2 {[%clk 00:02:22]} {[%emt 00:00:42]} d5 {[%clk 00:05:21]}
{[%emt 00:00:15]} 31. Qd4 {[%clk 00:02:08]} {[%emt 00:00:16]} Qc6 {[%clk
00:04:38]} {[%emt 00:00:46]} 32. Qf4 {[%clk 00:01:52]} {[%emt 00:00:19]} Qf6
{[%clk 00:03:40]} {[%emt 00:01:02]} 33. Re3 {[%clk 00:01:35]} {[%emt 00:00:21]}
R8e7 {[%clk 00:02:53]} {[%emt 00:00:50]} 34. Rxe5 {[%clk 00:01:14]} {[%emt
00:00:23]} Qxe5 {[%clk 00:02:52]} {[%emt 00:00:04]} 35. Qxe5 {[%clk 00:01:09]}
{[%emt 00:00:08]} Rxe5 {[%clk 00:02:54]} {[%emt 00:00:01]} 36. cxd5 {[%clk
00:01:07]} {[%emt 00:00:05]} Nxd5 {[%clk 00:02:51]} {[%emt 00:00:06]} 37. Kf2
{[%clk 00:00:59]} {[%emt 00:00:11]} Kg7 {[%clk 00:02:48]} {[%emt 00:00:06]} 38.
b4 {[%clk 00:00:51]} {[%emt 00:00:12]} axb4 {[%clk 00:02:46]} {[%emt 00:00:05]}
39. axb4 {[%clk 00:00:52]} {[%emt 00:00:02]} Kf7 {[%clk 00:02:23]} {[%emt
00:00:26]} 40. Kf3 {[%clk 00:00:54]} {[%emt 00:00:01]} b5 {[%clk 00:01:40]}
{[%emt 00:00:46]} 41. Rd4 {[%clk 00:00:51]} {[%emt 00:00:06]} Nf6 {[%clk
00:01:07]} {[%emt 00:00:35]} 42. Na3 {[%clk 00:00:35]} {[%emt 00:00:19]} Ng4
{[%clk 00:00:56]} {[%emt 00:00:14]} 43. g3 {[%clk 00:00:24]} {[%emt 00:00:14]}
Re3+ {[%clk 00:00:57]} {[%emt 00:00:02]} 0-1

[Event "Paul Kerese Mälestusfestival 2022 Kiirturniir"]
[Site "Pärnu, Estonia Resort Hotel & Spa"]
[Date "????.??.??"]
[Round "1.5"]
[White "Chukavin, Kirill"]
[Black "Zafra, Kim"]
[Result "1-0"]
[TimeControl "15 minutit partiile + 3 sek käigule"]
[WhiteTitle "FM"]
[WhiteElo "2418"]
[BlackElo "1428"]

1. e4 {[%clk 00:15:03]} {[%emt 00:00:03]} d6 {[%clk 00:15:06]} 2. d4 {[%clk
00:15:02]} {[%emt 00:00:04]} Nf6 {[%clk 00:15:08]} 3. Nc3 {[%clk 00:15:04]}
{[%emt 00:00:02]} g6 {[%clk 00:15:11]} 4. f4 {[%clk 00:15:05]} {[%emt
00:00:02]} Bg7 {[%clk 00:15:13]} {[%emt 00:00:02]} 5. Nf3 {[%emt 00:00:03]} c5
6. dxc5 {[%clk 00:14:45]} {[%emt 00:00:23]} Qa5 {[%clk 00:15:16]} {[%emt
00:00:03]} 7. Bd3 {[%clk 00:14:41]} {[%emt 00:00:06]} Qxc5 {[%clk 00:15:15]}
{[%emt 00:00:05]} 8. Qe2 {[%clk 00:14:33]} {[%emt 00:00:10]} Bg4 {[%clk
00:13:29]} {[%emt 00:01:49]} 9. Be3 {[%clk 00:14:13]} {[%emt 00:00:23]} Qa5
{[%clk 00:13:13]} {[%emt 00:00:19]} 10. O-O {[%clk 00:14:02]} {[%emt 00:00:13]}
Nc6 {[%clk 00:12:57]} {[%emt 00:00:19]} 11. h3 {[%clk 00:13:34]} {[%emt
00:00:31]} Bxf3 {[%clk 00:12:47]} {[%emt 00:00:13]} 12. Qxf3 {[%clk 00:13:30]}
{[%emt 00:00:07]} O-O {[%clk 00:12:13]} {[%emt 00:00:38]} 13. Ne2 {[%clk
00:11:37]} {[%emt 00:01:56]} Nd7 {[%clk 00:11:47]} {[%emt 00:00:29]} 14. c3
{[%clk 00:11:37]} {[%emt 00:00:02]} Qc7 {[%clk 00:10:34]} {[%emt 00:01:16]} 15.
Rad1 {[%clk 00:11:35]} {[%emt 00:00:04]} Nc5 {[%clk 00:09:48]} {[%emt
00:00:49]} 16. Bc2 {[%clk 00:11:12]} {[%emt 00:00:26]} a5 {[%clk 00:08:46]}
{[%emt 00:01:06]} 17. e5 {[%clk 00:11:02]} {[%emt 00:00:13]} b6 {[%clk
00:07:29]} {[%emt 00:01:21]} 18. exd6 {[%clk 00:10:56]} {[%emt 00:00:09]} exd6
{[%clk 00:07:30]} {[%emt 00:00:02]} 19. Nd4 {[%clk 00:10:52]} {[%emt 00:00:06]}
Nxd4 {[%clk 00:06:52]} {[%emt 00:00:42]} 20. Bxd4 {[%clk 00:10:53]} {[%emt
00:00:02]} Bxd4+ {[%clk 00:05:32]} {[%emt 00:01:24]} 21. Rxd4 {[%clk 00:10:53]}
{[%emt 00:00:02]} Ne6 {[%clk 00:05:26]} {[%emt 00:00:08]} 22. Rd2 {[%clk
00:10:34]} {[%emt 00:00:22]} Qc5+ {[%clk 00:05:28]} {[%emt 00:00:02]} 23. Kh1
{[%clk 00:10:25]} {[%emt 00:00:11]} Rad8 {[%clk 00:05:09]} {[%emt 00:00:22]} 24.
f5 {[%clk 00:09:49]} {[%emt 00:00:40]} Ng7 {[%clk 00:04:00]} {[%emt 00:01:11]}
25. Rd5 {[%clk 00:09:46]} {[%emt 00:00:05]} Qc4 {[%clk 00:03:27]} {[%emt
00:00:37]} 26. Bb3 {[%clk 00:09:44]} {[%emt 00:00:05]} Qh4 {[%clk 00:03:09]}
{[%emt 00:00:21]} 27. Rd4 {[%clk 00:09:26]} {[%emt 00:00:20]} Qh5 {[%clk
00:02:59]} {[%emt 00:00:13]} 28. fxg6 {[%clk 00:09:12]} {[%emt 00:00:18]} hxg6
{[%clk 00:02:51]} {[%emt 00:00:11]} 29. Qf6 {[%clk 00:08:42]} {[%emt 00:00:32]}
Rd7 {[%clk 00:02:16]} {[%emt 00:00:39]} 30. Rh4 {[%clk 00:08:37]} {[%emt
00:00:07]} Ne8 {[%clk 00:01:43]} {[%emt 00:00:36]} 31. Qd4 {[%clk 00:07:42]}
{[%emt 00:00:58]} Qe5 {[%clk 00:01:04]} {[%emt 00:00:42]} 32. Qg4 {[%clk
00:07:42]} {[%emt 00:00:02]} Qe7 {[%clk 00:00:05]} {[%emt 00:01:02]} 33. Qxg6+
{[%emt 00:00:04]} Ng7 34. Qh7# {[%clk 00:07:42]} {[%emt 00:00:01]} 1-0

[Event "Paul Kerese Mälestusfestival 2022 Kiirturniir"]
[Site "Pärnu, Estonia Resort Hotel & Spa"]
[Date "????.??.??"]
[Round "1.6"]
[White "Väärtnõu, Thomas"]
[Black "Volodin, Aleksandr"]
[Result "0-1"]
[TimeControl "15 minutit partiile + 3 sek käigule"]
[BlackTitle "GM"]
[WhiteElo "1427"]
[BlackElo "2407"]

1. d4 {[%clk 00:15:03]} {[%emt 00:38:13]} Nf6 {[%clk 00:14:58]} {[%emt
00:00:12]} 2. Nc3 {[%clk 00:15:05]} {[%emt 00:00:02]} d5 {[%clk 00:14:55]}
{[%emt 00:00:06]} 3. Bf4 {[%clk 00:15:05]} {[%emt 00:00:02]} a6 {[%clk
00:14:51]} {[%emt 00:00:07]} 4. e3 {[%clk 00:15:06]} {[%emt 00:00:03]} e6
{[%clk 00:14:47]} {[%emt 00:00:06]} 5. g4 {[%clk 00:15:07]} {[%emt 00:00:03]}
Bd6 {[%clk 00:14:24]} {[%emt 00:00:26]} 6. Be5 {[%clk 00:14:50]} {[%emt
00:00:20]} Bxe5 {[%clk 00:14:18]} {[%emt 00:00:08]} 7. dxe5 {[%clk 00:14:51]}
{[%emt 00:00:02]} Nfd7 {[%clk 00:14:20]} {[%emt 00:00:01]} 8. f4 {[%clk
00:14:34]} {[%emt 00:00:19]} Qh4+ {[%clk 00:14:00]} {[%emt 00:00:23]} 9. Kd2
{[%clk 00:14:14]} {[%emt 00:00:23]} c5 {[%clk 00:14:01]} {[%emt 00:00:03]} 10.
g5 {[%clk 00:13:03]} {[%emt 00:01:14]} d4 {[%clk 00:13:46]} {[%emt 00:00:17]}
11. Ne4 {[%clk 00:12:20]} {[%emt 00:00:46]} O-O {[%clk 00:11:25]} {[%emt
00:02:24]} 12. Qe2 {[%clk 00:10:53]} {[%emt 00:01:30]} Nxe5 {[%clk 00:11:17]}
{[%emt 00:00:11]} 13. fxe5 {[%clk 00:10:38]} {[%emt 00:00:18]} Qxe4 {[%clk
00:11:17]} {[%emt 00:00:02]} 14. Nf3 {[%clk 00:10:09]} {[%emt 00:00:32]} dxe3+
{[%clk 00:10:51]} {[%emt 00:00:30]} 15. Qxe3 {[%clk 00:10:09]} {[%emt
00:00:03]} Rd8+ {[%clk 00:10:52]} {[%emt 00:00:02]} 16. Ke2 {[%clk 00:10:03]}
{[%emt 00:00:09]} Qxc2+ {[%clk 00:10:52]} {[%emt 00:00:03]} 17. Ke1 {[%clk
00:09:06]} {[%emt 00:01:00]} Nc6 {[%clk 00:10:44]} {[%emt 00:00:11]} 18. Qc3
{[%clk 00:08:55]} {[%emt 00:00:14]} Nb4 {[%clk 00:10:41]} {[%emt 00:00:07]} 19.
a3 {[%clk 00:08:41]} {[%emt 00:00:17]} Qxc3+ {[%clk 00:10:40]} {[%emt
00:00:03]} 20. bxc3 {[%clk 00:08:43]} {[%emt 00:00:02]} Nc2+ {[%clk 00:10:42]}
{[%emt 00:00:01]} 0-1

[Event "Paul Kerese Mälestusfestival 2022 Kiirturniir"]
[Site "Pärnu, Estonia Resort Hotel & Spa"]
[Date "????.??.??"]
[Round "1.7"]
[White "Smirnov, Artem"]
[Black "Kõlar, Karl-Ustav"]
[Result "1-0"]
[TimeControl "15 minutit partiile + 3 sek käigule"]
[WhiteTitle "IM"]
[WhiteElo "2287"]
[BlackElo "1424"]

1. d4 {[%clk 00:15:03]} {[%emt 00:00:02]} d5 {[%clk 00:15:05]} {[%emt
00:00:02]} 2. c4 {[%clk 00:15:05]} {[%emt 00:00:01]} e6 {[%clk 00:15:05]}
{[%emt 00:00:03]} 3. Nc3 {[%clk 00:15:06]} {[%emt 00:00:01]} Nf6 {[%clk
00:15:06]} {[%emt 00:00:02]} 4. cxd5 {[%clk 00:15:07]} {[%emt 00:00:02]} exd5
{[%clk 00:15:05]} {[%emt 00:00:04]} 5. Bg5 {[%clk 00:15:08]} {[%emt 00:00:02]}
Nbd7 {[%clk 00:14:31]} {[%emt 00:00:37]} 6. e3 {[%clk 00:15:09]} {[%emt
00:00:02]} Be7 {[%clk 00:14:28]} {[%emt 00:00:06]} 7. Bd3 {[%clk 00:15:08]}
{[%emt 00:00:03]} O-O {[%clk 00:14:19]} {[%emt 00:00:12]} 8. Nge2 {[%clk
00:15:08]} {[%emt 00:00:03]} h6 {[%clk 00:13:51]} {[%emt 00:00:31]} 9. Bh4
{[%clk 00:15:06]} {[%emt 00:00:05]} c6 {[%clk 00:13:28]} {[%emt 00:00:26]} 10.
Qc2 {[%clk 00:15:04]} {[%emt 00:00:05]} Nb6 {[%clk 00:11:51]} {[%emt 00:01:41]}
11. O-O {[%clk 00:13:53]} {[%emt 00:01:14]} Be6 {[%clk 00:11:50]} {[%emt
00:00:04]} 12. Nf4 {[%clk 00:12:59]} {[%emt 00:00:57]} Bd7 {[%clk 00:09:58]}
{[%emt 00:01:56]} 13. Bg3 {[%clk 00:12:32]} {[%emt 00:00:29]} Nc8 {[%clk
00:09:02]} {[%emt 00:00:58]} 14. f3 {[%clk 00:12:12]} {[%emt 00:00:23]} c5
{[%clk 00:05:02]} {[%emt 00:04:04]} 15. dxc5 {[%clk 00:11:23]} {[%emt
00:00:52]} Bxc5 {[%clk 00:04:53]} {[%emt 00:00:12]} 16. Ncxd5 {[%clk 00:11:21]}
{[%emt 00:00:06]} Bb6 {[%clk 00:02:39]} {[%emt 00:02:18]} 17. Rad1 {[%clk
00:09:56]} {[%emt 00:01:27]} Nxd5 {[%clk 00:02:29]} {[%emt 00:00:13]} 18. Nxd5
{[%clk 00:09:57]} {[%emt 00:00:02]} Ne7 {[%clk 00:02:31]} {[%emt 00:00:02]} 19.
Nxb6 {[%clk 00:09:41]} {[%emt 00:00:19]} Qxb6 {[%clk 00:02:32]} {[%emt
00:00:01]} 20. Bh7+ {[%clk 00:09:37]} {[%emt 00:00:07]} Kh8 {[%clk 00:02:35]}
{[%emt 00:00:01]} 21. Rxd7 {[%clk 00:09:36]} {[%emt 00:00:04]} Qxe3+ {[%clk
00:02:17]} {[%emt 00:00:21]} 22. Bf2 {[%clk 00:09:31]} {[%emt 00:00:08]} Qe6
{[%clk 00:02:18]} {[%emt 00:00:02]} 23. Rxb7 {[%clk 00:09:04]} {[%emt
00:00:31]} g6 {[%clk 00:02:18]} {[%emt 00:00:02]} 24. Re1 {[%clk 00:08:53]}
{[%emt 00:00:14]} 1-0

[Event "Paul Kerese Mälestusfestival 2022 Kiirturniir"]
[Site "Pärnu, Estonia Resort Hotel & Spa"]
[Date "????.??.??"]
[Round "1.8"]
[White "Titov, Sergey"]
[Black "Golubovskis, Maksims"]
[Result "0-1"]
[TimeControl "15 minutit partiile + 3 sek käigule"]
[BlackTitle "FM"]
[WhiteElo "1370"]
[BlackElo "2209"]

1. e4 {[%clk 00:15:02]} {[%emt 00:00:03]} c5 {[%clk 00:15:04]} {[%emt
00:00:02]} 2. Nf3 {[%clk 00:15:05]} d6 {[%clk 00:15:06]} {[%emt 00:00:02]} 3.
d4 {[%clk 00:15:04]} {[%emt 00:00:04]} cxd4 {[%clk 00:15:08]} {[%emt 00:00:01]}
4. Nxd4 {[%clk 00:15:05]} {[%emt 00:00:02]} Nf6 {[%clk 00:15:10]} 5. Nc3 {[%clk
00:15:07]} {[%emt 00:00:01]} a6 {[%clk 00:15:12]} 6. Be2 {[%clk 00:15:02]}
{[%emt 00:00:08]} e5 {[%clk 00:15:12]} {[%emt 00:00:03]} 7. Nb3 {[%clk
00:15:03]} {[%emt 00:00:03]} Be7 {[%clk 00:15:13]} 8. O-O {[%clk 00:15:04]}
{[%emt 00:00:03]} O-O {[%clk 00:15:12]} {[%emt 00:00:04]} 9. Be3 {[%clk
00:14:53]} {[%emt 00:00:14]} Be6 {[%clk 00:15:10]} {[%emt 00:00:04]} 10. f3
{[%clk 00:14:28]} {[%emt 00:00:28]} Nbd7 {[%clk 00:14:57]} {[%emt 00:00:15]} 11.
Nd5 {[%clk 00:14:23]} {[%emt 00:00:09]} Nxd5 {[%clk 00:14:51]} {[%emt
00:00:08]} 12. exd5 {[%clk 00:14:24]} {[%emt 00:00:02]} Bf5 {[%clk 00:14:54]}
13. c4 {[%clk 00:14:26]} {[%emt 00:00:01]} b6 {[%clk 00:14:51]} {[%emt
00:00:06]} 14. Rc1 {[%clk 00:14:26]} {[%emt 00:00:03]} Bg6 {[%clk 00:14:52]} 15.
Nd2 {[%clk 00:14:19]} {[%emt 00:00:10]} a5 {[%clk 00:14:48]} {[%emt 00:00:08]}
16. Ne4 {[%clk 00:14:15]} {[%emt 00:00:07]} f5 {[%clk 00:14:46]} {[%emt
00:00:04]} 17. Nc3 {[%clk 00:13:42]} {[%emt 00:00:36]} Bg5 {[%clk 00:14:47]}
{[%emt 00:00:01]} 18. Qd3 {[%clk 00:12:18]} {[%emt 00:01:28]} f4 {[%clk
00:14:43]} {[%emt 00:00:06]} 19. Ne4 {[%clk 00:12:03]} {[%emt 00:00:19]} fxe3
{[%clk 00:14:43]} {[%emt 00:00:03]} 20. Qc3 {[%clk 00:11:00]} {[%emt 00:01:07]}
Bxe4 {[%clk 00:14:41]} {[%emt 00:00:05]} 21. fxe4 {[%clk 00:11:02]} {[%emt
00:00:02]} Nc5 {[%clk 00:14:42]} {[%emt 00:00:01]} 22. Bf3 {[%clk 00:10:42]}
{[%emt 00:00:24]} e2 {[%clk 00:14:39]} {[%emt 00:00:06]} 0-1

[Event "Paul Kerese Mälestusfestival 2022 Kiirturniir"]
[Site "Pärnu, Estonia Resort Hotel & Spa"]
[Date "????.??.??"]
[Round "2.1"]
[White "Paikens, Reinis"]
[Black "Shirov, Alexei"]
[Result "0-1"]
[TimeControl "15 minutit partiile + 3 sek käigule"]
[BlackTitle "GM"]
[BlackFideId "2209390"]
[WhiteElo "1847"]
[BlackElo "2621"]

1. c4 {[%clk 00:15:02]} {[%emt 00:00:03]} e6 {[%clk 00:14:59]} {[%emt
00:00:06]} 2. Nc3 {[%clk 00:15:02]} {[%emt 00:00:04]} d5 {[%clk 00:14:53]}
{[%emt 00:00:08]} 3. cxd5 {[%clk 00:15:02]} {[%emt 00:00:03]} exd5 {[%clk
00:14:55]} {[%emt 00:00:01]} 4. d4 {[%clk 00:15:04]} {[%emt 00:00:02]} c6
{[%clk 00:14:45]} {[%emt 00:00:12]} 5. Bf4 {[%clk 00:14:58]} {[%emt 00:00:09]}
Bd6 {[%clk 00:14:35]} {[%emt 00:00:12]} 6. Bg3 {[%clk 00:14:56]} {[%emt
00:00:06]} Ne7 {[%clk 00:14:13]} {[%emt 00:00:25]} 7. Nf3 {[%clk 00:14:30]}
{[%emt 00:00:29]} Nf5 {[%clk 00:14:04]} {[%emt 00:00:12]} 8. e3 {[%clk
00:14:12]} {[%emt 00:00:21]} Nxg3 {[%clk 00:13:54]} {[%emt 00:00:13]} 9. hxg3
{[%clk 00:14:13]} {[%emt 00:00:02]} Nd7 {[%clk 00:13:44]} {[%emt 00:00:13]} 10.
Bd3 {[%clk 00:13:56]} {[%emt 00:00:19]} Nf6 {[%clk 00:13:45]} {[%emt 00:00:02]}
11. Qc2 {[%clk 00:13:51]} {[%emt 00:00:09]} g6 {[%clk 00:12:03]} {[%emt
00:01:45]} 12. Rc1 {[%clk 00:12:30]} {[%emt 00:01:24]} O-O {[%clk 00:11:00]}
{[%emt 00:01:05]} 13. Ng5 {[%clk 00:11:26]} {[%emt 00:01:08]} Re8 {[%clk
00:09:37]} {[%emt 00:01:26]} 14. Ne2 {[%clk 00:06:55]} {[%emt 00:04:34]} Qe7
{[%clk 00:06:31]} {[%emt 00:03:09]} 15. Nf4 {[%clk 00:03:46]} {[%emt 00:03:12]}
Ng4 {[%clk 00:05:19]} {[%emt 00:01:15]} 16. Nxh7 {[%clk 00:02:07]} {[%emt
00:01:43]} Kg7 {[%clk 00:04:54]} {[%emt 00:00:27]} 17. Bxg6 {[%clk 00:00:54]}
{[%emt 00:01:17]} Bxf4 {[%clk 00:04:52]} {[%emt 00:00:03]} 18. Bxf7 {[%clk
00:00:43]} {[%emt 00:00:14]} Qxf7 {[%clk 00:03:16]} {[%emt 00:01:39]} 19. gxf4
{[%clk 00:00:37]} {[%emt 00:00:10]} Qxf4 {[%clk 00:03:03]} {[%emt 00:00:16]} 20.
Rh3 {[%clk 00:00:18]} {[%emt 00:00:22]} Nxf2 {[%clk 00:01:51]} {[%emt
00:01:15]} 21. Kf1 {[%clk 00:00:05]} {[%emt 00:00:17]} Rxe3 {[%clk 00:01:15]}
{[%emt 00:00:39]} 22. Rxe3 {[%clk 00:00:04]} {[%emt 00:00:04]} Ng4+ {[%clk
00:01:04]} {[%emt 00:00:13]} 23. Ke1 {[%clk 00:00:04]} {[%emt 00:00:04]} Qxe3+
{[%emt 00:00:51]} 24. Ra1 {[%emt 00:00:04]} 0-1